[Event "15th Paleochora Open 2022"]
[Site "Paleochora"]
[Date "2022.07.22"]
[Round "7.12"]
[White "Georgiou, Kostantinos"]
[Black "Zwardon, Vojtech"]
[Result "0-1"]
[ECO "A32"]
[WhiteElo "2259"]
[BlackElo "2503"]
[Annotator "TA"]
[PlyCount "84"]
[EventDate "2022.07.17"]
[EventType "swiss"]
[EventCountry "GRE"]
[SourceTitle "playchess.com"]
[Source "ChessBase"]
[SourceQuality "1"]
[TimeControl "40/5400+30:900+30"]

{[%evp 10,84,3,-22,-10,-42,-35,-89,-79,-94,-89,-108,-86,-136,-138,-124,-131,-212,-217,-224,-212,-226,-224,-209,-205,-196,-184,-195,-191,-297,-290,-311,-282,-411,-407,-411,-396,-415,-405,-409,-435,-461,-461,-425,-396,-382,-362,-545,-547,-522,-521,-718,-711,-664,-579,-598,-598,-577,-572,-598,-598,-591,-587,-590,-579,-583,-563,-697,-681,-759,-743,-1658,-1658,-1587,-1131,-989,-975]} 1. d4 Nf6 2. Nf3 e6 3. c4 c5 4. g3 cxd4 5. Nxd4 Qc7 6. Bg2 Qxc4 {A32: Symmetrical English: 2 Nf3 Nf6 3 d4 cxd4 4 Nxd4 e6.} 7. O-O Nc6 8. Nc2 (8. Nxc6 $15 bxc6 9. Nd2) 8... d5 $17 {[#] Black is better.} 9. Nba3 $146 ({Predecessor:} 9. Re1 Be7 10. Bf1 Qc5 11. a3 O-O 12. b4 Qd6 13. Bb2 e5 14. Nd2 Be6 15. Nb3 {0-1 (58) Hansen,L (2580)-Hansen,C (2630) Copenhagen 1995}) 9... Qa6 {Black is more active.} 10. b4 {[#] Hoping for b5.} Nxb4 11. Nxb4 (11. Rb1 $142 Nc6 12. e4 Nxe4 13. Nb5) 11... Bxb4 12. Qb3 Qa5 13. g4 (13. Rb1 $17 Bc5 14. Qb5+ Qxb5 15. Nxb5) 13... O-O $19 14. g5 Nd7 15. Rb1 Be7 16. Nb5 a6 17. Nd4 Bd6 {Inhibits Bf4.} 18. h4 Nc5 19. Qd1 (19. Qb6 $142 Qxb6 20. Rxb6) 19... Qxa2 20. Bb2 Qa4 21. Qd2 (21. e4 $142) 21... e5 22. Nf3 d4 23. e3 Bf5 24. exd4 {And now Ra1 would win.} Nb3 {Inhibits Ra1.} 25. Qe3 Bxb1 26. Rxb1 exd4 27. Nxd4 Nxd4 28. Bxd4 (28. Qxd4 $142 Qxd4 29. Bxd4) 28... Rfe8 {Black is clearly winning.} 29. Qc3 Rac8 30. Qd3 Rcd8 {[%cal Od6c5] Strongly threatening ...Bc5!} 31. Qc3 Qxd4 32. Qxd4 {[#]} Bh2+ $1 {[%mdl 576] Discovered Attack} 33. Kxh2 Rxd4 34. Rxb7 Rxh4+ {[%mdl 4096] Endgame KRR-KRB} 35. Kg3 Rd4 36. Ra7 Rd3+ 37. Kg4 Rd6 38. f4 g6 39. Bf1 Re4 {Against Bc4} 40. Rxa6 Rxa6 41. Bxa6 Kg7 42. Bb7 Rd4 {White got outplayed after the opening.  Weighted Error Value: White=0.33/Black=0.06 (flawless)} 0-1

[Event "15th Paleochora Open 2022"]
[Site "Paleochora"]
[Date "2022.07.22"]
[Round "7.13"]
[White "Yankelevich, Lev"]
[Black "Milonakis, Georgios"]
[Result "1-0"]
[ECO "D35"]
[WhiteElo "2496"]
[BlackElo "2256"]
[Annotator "TA"]
[PlyCount "149"]
[EventDate "2022.07.17"]
[EventType "swiss"]
[EventCountry "GRE"]
[SourceTitle "playchess.com"]
[Source "ChessBase"]
[SourceQuality "1"]
[TimeControl "40/5400+30:900+30"]

{[%evp 13,149,20,22,8,13,9,8,8,11,9,39,11,11,0,21,14,14,6,4,4,13,18,45,47,51,43,41,37,54,53,58,67,69,54,71,39,35,28,56,58,66,68,86,58,69,67,72,7,8,-25,19,-12,42,-14,0,-21,-29,-50,66,62,67,73,97,129,128,123,196,168,207,198,239,186,199,185,148,60,416,412,706,663,633,679,735,789,772,739,795,756,853,853,879,879,1129,1127,956,883,29966,29967,29966,29968,29974,29975,29975,29976,29976,29976,29977,29973,29973,29974,29974,29975,29975,29973,29973,29950,1696,0,29973,0,29973,0,29974,29975,29977,29978,29978,29962,29979,29980,29981,29982,29982,29982,29982,29982,29977,5197]} 1. d4 Nf6 2. c4 e6 3. Nc3 d5 4. cxd5 exd5 5. Bg5 c6 6. e3 Be7 7. Bd3 Nbd7 8. h3 {D35: Queen's Gambit Declined: Exchange Variation.} Nf8 9. Nf3 Ne6 10. Bh4 {The position is equal.} O-O 11. O-O {[%cal Ob2b4]} Re8 12. Ne5 g6 {[#]} 13. Qb3 $146 ({Predecessor:} 13. f4 Ng7 14. Qf3 Bf5 15. Bxf5 Nxf5 16. Bxf6 Bxf6 17. g4 Nd6 18. b3 Bg7 19. g5 {0-1 (55) Papathanasiou,E (1558)-Bitalzadeh,M Herceg Novi 2008}) 13... Nh5 14. Bxe7 Qxe7 15. Qa3 Qxa3 16. bxa3 {[%cal Bb2a3,Ba3a4,Ba4a5][%mdl 32]} f6 17. Nf3 b6 18. a4 Bd7 19. Rab1 Nhg7 20. Rb2 Nf5 21. a5 b5 22. Bxf5 gxf5 23. Rc1 a6 24. Nd2 {[%cal Bf3d2,Bd2b3,Bb3c5][%mdl 32]} f4 25. Nb3 fxe3 26. fxe3 Ng5 {[%cal Be6g5,Bg5f7,Bf7d6,Bd6c4][%mdl 32]} 27. Nc5 Bc8 28. Rf2 Kg7 29. h4 Nf7 30. Rcf1 {White is more active.} ({Better is} 30. e4 $1 $16 {[%cal Re4d5]}) 30... f5 $11 31. Rf3 {[%cal Oe3e4]} Ra7 32. Rg3+ Kh6 (32... Kh8 $11) 33. Rff3 ({White should try} 33. e4 $14) 33... Rae7 34. Nd3 Nd6 {Threatens to win with ...Ne4.} 35. Ne5 Rxe5 (35... b4 $15 36. Ne2 Ne4) 36. dxe5 $14 Nc4 37. Ne2 {And now Nd4 would win.} Nxe5 38. Rf1 {Hoping for Nd4.} c5 {Inhibits Nd4.} 39. Nf4 Rd8 (39... Ng4 $16 {might work better.}) 40. Rd1 $1 $18 d4 41. exd4 {Re1 is the strong threat.} cxd4 42. Nd3 Nc4 43. Rg5 Rd6 44. Rf1 (44. Nf4 $16) 44... Ne3 $2 {[%mdl 8192]} ({Black should play} 44... Bb7 $1 $14) 45. Ne5 {[%cal Re5f7]} Rg6 (45... Be6 $2 {[#]} 46. Rfxf5 $1 Bd5 47. Rf3 $1 $18 {[%mdl 512]}) (45... Rf6 $142 46. Rf4 d3) 46. Nxg6 hxg6 47. Rf4 Nc2 48. Rf2 Nb4 49. Rg3 Be6 50. Rd2 Nc6 51. Rgd3 Kh5 52. Rxd4 {Strongly threatening Rd6.} Nxd4 53. Rxd4 {[%mdl 4096] Endgame KR-KB} b4 54. Rxb4 Bxa2 55. Kf2 Bd5 56. g3 Be4 57. Ke3 Bg2 58. Kf4 Bf1 59. Rb6 Be2 60. Ke5 Bd3 61. Rd6 Bf1 62. Rf6 Bd3 63. Kd4 Be2 64. Kc5 Bd3 65. Kd4 (65. Kb4 $18 Bf1 66. Kc3) 65... Be2 $1 66. Ke5 Bd3 $1 67. Rd6 Bf1 $1 68. Kf4 {White mates.} Be2 69. Rd8 {[%cal Rd8h8]} Kh6 70. Rh8+ Kg7 71. Re8 Bd3 72. Kg5 Kf7 73. Rb8 Kg7 74. Rb7+ Kg8 75. Rb6 {Weighted Error Value: White=0.11 (very precise) /Black=0.38} 1-0

[Event "15th Paleochora Open 2022"]
[Site "Paleochora"]
[Date "2022.07.22"]
[Round "7.14"]
[White "Antic, Dejan"]
[Black "Rahmanidis, Petros"]
[Result "1/2-1/2"]
[ECO "D02"]
[WhiteElo "2452"]
[BlackElo "2191"]
[Annotator "TA"]
[PlyCount "76"]
[EventDate "2022.07.17"]
[EventType "swiss"]
[EventCountry "GRE"]
[SourceTitle "playchess.com"]
[Source "ChessBase"]
[SourceQuality "1"]
[TimeControl "40/5400+30:900+30"]

{[%evp 9,76,9,8,12,0,0,11,8,19,19,11,10,12,11,11,3,20,-10,0,0,28,9,16,1,2,0,0,0,0,0,0,0,0,0,-6,-5,0,-11,0,0,0,-16,-17,-17,-17,-17,-5,-76,-29,-51,-48,-75,-62,-76,-81,-100,-92,-100,-100,-94,-96,-97,-77,-87,0,-97,0,-85,0]} 1. d4 d5 2. Nf3 e6 3. g3 b5 4. Bg2 Nd7 5. e4 dxe4 6. Ng5 {D02: 1 d4 d5 2 Nf3 sidelines, including 2...Nf6 3 g3 and 2...Nf6 3 Bf4.} Ngf6 {Against Qh5} 7. O-O Rb8 {[#]} 8. Qe2 $146 {The position is equal.} ({Predecessor:} 8. Nc3 Be7 9. Ncxe4 O-O 10. c3 h6 11. Nxf6+ Nxf6 12. Ne4 Nxe4 13. Bxe4 Bb7 14. Bxb7 Rxb7 {½-½ (32) Tratar,M (2443)-Haba,P (2470) Austria 2020}) 8... h6 9. Nxe4 Nxe4 10. Bxe4 Nf6 11. Bc6+ Bd7 12. Bg2 {[%cal Oa2a4]} Be7 13. a4 b4 14. Nd2 Qc8 15. Nc4 Qa6 16. Bf4 {[%cal Oc4d6] [#] And now Nd6+! would win.} O-O 17. Rfe1 ({Avoid the trap} 17. Bxc7 $2 Rbc8 18. Rfe1 Rxc7 $19) 17... Bc6 18. Ne5 ({Don't play} 18. Bxc7 Bxg2 19. Bxb8 Bd5 $17) 18... Qxe2 19. Rxe2 Bxg2 20. Kxg2 {Black must now prevent Nc6.} Rb7 21. c4 bxc3 $1 22. bxc3 Nd5 23. Bd2 {[%cal Bf4d2,Bd2c3,Bc3d4][%mdl 32]} c5 24. c4 Nf6 25. Nc6 Bd6 $1 26. Bc3 {[%cal Od4d5]} cxd4 27. Bxd4 Rc8 28. Na5 (28. Nxa7 $11 Rxc4 29. Nb5 Rxb5 30. axb5 Rxd4 31. Ra8+ Kh7 32. Rb2) 28... Rbc7 ({Black should play} 28... Rb4 $17) 29. Rb1 {[%cal Oc4c5]} Nd7 {Prevents c5.} 30. Nb7 Bf8 31. Na5 Bc5 32. Rd2 Bb6 33. Rb5 Bxd4 34. Rxd4 Nb6 35. Rb4 Rc5 36. Rb5 {[%cal Od4d8]} R5c7 37. Rb4 Rc5 38. Rb5 R5c7 {Weighted Error Value: White=0.10 (very precise) /Black=0.10 (very precise)} (38... Nxa4 $17 39. Rd7 a6 40. Rxc5 Nxc5) 1/2-1/2

[Event "15th Paleochora Open 2022"]
[Site "Paleochora"]
[Date "2022.07.22"]
[Round "7.15"]
[White "Kalogeris, Ioannis"]
[Black "Tsarsitalidis, Christos"]
[Result "1-0"]
[ECO "E20"]
[WhiteElo "2406"]
[BlackElo "1896"]
[Annotator "TA"]
[PlyCount "63"]
[EventDate "2022.07.17"]
[EventType "swiss"]
[EventCountry "GRE"]
[SourceTitle "playchess.com"]
[Source "ChessBase"]
[SourceQuality "1"]
[TimeControl "40/5400+30:900+30"]

{[%evp 9,63,-4,-4,-4,13,-13,24,20,24,18,37,38,52,47,108,62,66,54,106,97,95,102,107,112,117,89,91,95,263,266,277,272,263,270,271,275,272,278,297,304,385,385,455,453,457,460,514,404,689,695,1025,985,1056,1054,927,374]} 1. d4 d5 2. c4 e6 3. Nc3 Bb4 4. e3 Nf6 5. Bd2 O-O 6. Rc1 {E20: Nimzo-Indian: 4 g3 and 4 f3.} c6 {[#]} 7. Qb3 $146 ({Predecessor:} 7. Nf3 Nbd7 8. Be2 dxc4 9. Bxc4 b5 10. Be2 Bb7 11. O-O Bd6 12. Ng5 Be7 13. f4 {0-1 (70) Fedoseev,V (2718)-Bernadskiy,V (2574) Chess.com INT 2017}) 7... Bxc3 8. Bxc3 {White has an edge.} Ne4 9. Nf3 Nd7 10. Bd3 f5 11. O-O Ng5 (11... Rf6 $14) 12. Ne5 {White is more active.} (12. Nxg5 $16 Qxg5 13. Bb4) 12... Nxe5 $14 13. dxe5 Ne4 {[#]} ({Black should play} 13... b6 $14) 14. Bb4 $1 $36 {[%mdl 2048] Threatens to win with f3. Black is under strong pressure.} Re8 15. Rfd1 Qg5 16. Bf1 {[%cal Rc4d5]} Qd8 17. Qa3 Bd7 18. Be1 Qe7 $2 {[#] Loses the game.} (18... a5 $16) 19. Qxe7 $18 Rxe7 20. f3 Nc5 21. cxd5 Na4 22. d6 Ree8 23. Rd3 {[%cal Bd1d3,Bd3b3,Bb3b7,Bb7d7][%mdl 32]} Nb6 24. Rb3 Rab8 25. Ba5 Nd5 26. Bc7 Ra8 27. Rxb7 Nxe3 28. Ba6 Nd5 (28... Rf8 $142 29. Rb3 Nd5) 29. Ba5 {This bishop pair is nice. White is clearly winning.} Nb6 30. Bxb6 axb6 31. Rxd7 Rxa6 32. Rc2 {Weighted Error Value: White=0.08 (flawless) /Black=0.36} (32. Rxc6 $142 Rxa2 33. Rcc7) 1-0

[Event "15th Paleochora Open 2022"]
[Site "Paleochora"]
[Date "2022.07.22"]
[Round "7.16"]
[White "Simonetto, Alessio"]
[Black "Maltsevskaya, Aleksandra"]
[Result "0-1"]
[ECO "A45"]
[WhiteElo "2064"]
[BlackElo "2378"]
[Annotator "TA"]
[PlyCount "56"]
[EventDate "2022.07.17"]
[EventType "swiss"]
[EventCountry "GRE"]
[SourceTitle "playchess.com"]
[Source "ChessBase"]
[SourceQuality "1"]
[TimeControl "40/5400+30:900+30"]

{[%evp 9,56,23,76,42,69,33,53,32,50,8,26,0,3,4,0,-95,-77,-103,87,92,107,0,76,87,87,95,105,41,45,51,47,58,53,0,49,0,38,-25,-26,-279,-282,-665,-661,-655,-635,-673,-579,-29990,-29990]} 1. d4 {[%cal Bd2d4,Bd4c5][%mdl 32]} Nf6 2. Bf4 g6 3. Nc3 c5 4. dxc5 Bg7 5. e4 O-O (5... Qa5 $11 {keeps the balance.}) 6. Qd2 {[#] A45: Trompowsky Attack.} Nc6 $146 ({Predecessor:} 6... Qa5 7. Be3 Ng4 8. Bd4 Bxd4 9. Qxd4 Nc6 10. Qd1 Nf6 11. Bd3 Qxc5 12. Nf3 d6 {0-1 (32) Sukandar,I (2413)-Mikhalevski,V (2565) Chess.com INT 2020}) 7. f3 b6 8. cxb6 {White is slightly better.} Qxb6 {And now ...Nh5 would win.} 9. Na4 Qb7 {[%cal Od7d5]} 10. Bc4 d5 $1 11. exd5 Nb4 12. Be5 (12. c3 $11 Nbxd5 13. Bg3) 12... Bf5 $1 $17 13. Bb3 Nbxd5 $2 {Black is more active.} (13... Rac8 $17 {[%cal Rb4c2] keeps the pressure on.} 14. Rc1 (14. Nc3 Rfd8 $17) 14... Rfd8) 14. O-O-O {[%cal Rb3d5]} Nb4 {[#] White must now prevent ...Qb5.} 15. Bc3 (15. Ne2 $1 $16) 15... a5 (15... Bxc2 $1 $11 {remains equal.} 16. Bxc2 Nxa2+ 17. Kb1 Nxc3+ 18. Qxc3 Rab8) 16. Ne2 Rfc8 17. Kb1 Rab8 18. g4 ({Better is} 18. Rhe1 $16) 18... Bd7 $14 19. Bxf6 Bxa4 20. Bxg7 ({Don't go for} 20. Bxa4 $2 Bxf6 21. c3 {[#]} Nd3 $1 $19) 20... Bxb3 21. cxb3 (21. axb3 $14 Kxg7 22. Nc3) 21... Kxg7 (21... Qxf3 $11 {is more appropriate.} 22. Nc3 Qxg4) 22. Nd4 (22. Qd4+ $1 $14 {deserves consideration.} f6 23. Qe4) 22... Kg8 (22... e5 $5 {[%cal Re5d4]} 23. Nf5+ gxf5 24. Qg5+ Kf8 $11) 23. Qg5 ({White should try} 23. Qe3 $14) 23... a4 $11 {[%cal Ob4a2][%mdl 1024] Threatens to win with ...Nxa2! Black has compensation.} 24. Nf5 $2 {[%mdl 8192] This move loses the game for White.} (24. a3 $1 $11 {and White is okay.}) 24... f6 $19 {The board is on fire.} 25. Nh6+ $2 (25. Qe3 gxf5 26. g5) 25... Kg7 26. Qe3 Nc2 {[%mdl 64] Deflection} 27. Qe6 {[%cal Oh6f5] Nf5+! is the strong threat.} axb3 28. axb3 {[%cal Oh6f5]} Ra8 {Weighted Error Value: White=0.91/Black=0.27 (precise)} 0-1

[Event "15th Paleochora Open 2022"]
[Site "Paleochora"]
[Date "2022.07.22"]
[Round "7.17"]
[White "Sotirakis, Konstantinos"]
[Black "Naoum, Spyridon"]
[Result "1-0"]
[ECO "B26"]
[WhiteElo "1892"]
[BlackElo "2346"]
[Annotator "TA"]
[PlyCount "107"]
[EventDate "2022.07.17"]
[EventType "swiss"]
[EventCountry "GRE"]
[SourceTitle "playchess.com"]
[Source "ChessBase"]
[SourceQuality "1"]
[TimeControl "40/5400+30:900+30"]

{[%evp 18,107,0,-4,-7,-16,-18,-21,-16,-13,-30,-34,-12,-41,-33,-48,-10,-66,-51,-114,-124,-157,-102,-107,-90,-109,-93,-103,0,-8,0,-18,-43,0,0,-143,-94,-97,-32,-35,0,-23,31,35,57,66,65,72,80,79,109,72,33,0,377,10,11,10,166,166,220,216,200,207,238,125,125,120,115,104,187,50,51,47,47,19,200,75,831,789,1562,694,683,555,4622,1844,29977,29978,29979,5612,29984,29984]} 1. e4 c5 2. Nc3 g6 3. g3 Bg7 4. Bg2 Nc6 5. d3 d6 6. Be3 Rb8 7. Qd2 b5 {[%cal Bb7b5,Bb5b4][%mdl 32]} 8. Nge2 b4 {The main line 8...b4 scores better than 8...Nd4.} 9. Nd1 Nd4 10. O-O h5 {B26: Closed Sicilian: 3 g3, lines with early Be3.} 11. h3 e6 12. Nc1 Ne7 {The position is equal.} 13. c3 Ndc6 14. Ne2 a5 15. d4 cxd4 16. cxd4 {[#]} d5 $146 ({Predecessor:} 16... Ba6 17. Re1 O-O 18. f4 d5 19. e5 f6 20. Rc1 fxe5 21. dxe5 Rf7 22. Nf2 Rc8 23. Nd3 Bxd3 24. Qxd3 Nf5 {½-½ (75) Gouvart,S (1975)-Pais,B (1697) Figueira da Foz 2010}) 17. e5 (17. exd5 $11 Nxd5 18. Bg5) 17... Ba6 18. Rc1 ({White should try} 18. f4 $15) 18... Qb6 $17 19. Re1 a4 (19... Nf5 $142 20. b3 Bxe2 21. Qxe2 Ncxd4) 20. g4 hxg4 21. hxg4 Na5 {Prevents b3. Strongly threatening ...Nec6.} 22. Bg5 Bf8 (22... Bc4 $17 23. Ne3 Bxa2) 23. Bf6 Rh7 24. Ne3 Nc4 25. Nxc4 Bxc4 26. a3 (26. Qd1 $11 {remains equal.}) 26... Qb5 (26... bxa3 $142 27. bxa3 Ng8) 27. Nf4 Bh6 ({Black should play} 27... bxa3 $17 28. bxa3 Ng8) 28. Bf1 $15 Rb7 (28... Bxf4 $5 29. Qxf4 bxa3 30. bxa3 Nc6 $15) 29. Rc2 Kd7 (29... bxa3 $11 30. bxa3 Bxf1) 30. Bxe7 $14 {The board is on fire.} Kxe7 31. g5 Bf8 32. Bxc4 dxc4 {[%cal Bd5c4,Bc4c3][%mdl 32]} 33. d5 {Threatens to win with Qd4. White is more active.} Ke8 34. d6 c3 35. Qd3 {Hoping for axb4.} Rh4 $2 {[%mdl 8192]} ({Don't play} 35... Qc6 36. Ng2 Qb5 37. Qf3 $16) (35... Bg7 $1 $11 36. Qe3 cxb2 37. Rxb2 (37. Rc8+ Kd7 $11) 37... b3) 36. Qxb5+ $2 (36. Qg3 $18 Rh8 37. axb4 cxb2 38. Qf3) 36... Rxb5 $11 37. Ng2 Rc4 (37... cxb2 $11 38. Rxb2 (38. Nxh4 $2 {loses.} bxa3 39. Rd1 Rd5 $19) 38... Rd4) 38. axb4 $18 Rbxb4 (38... Rcxb4 $142 39. Rxc3 Bg7) 39. Rxc3 Rxc3 40. bxc3 {[%mdl 4096] Endgame KRB-KRN} Rb3 41. Ra1 ({White must play} 41. Re4 $1 $18 {[%cal Re4a4]}) 41... a3 $16 {[#]} 42. c4 $1 Kd7 43. Kf1 Kc6 {[#]} (43... Rc3 $16 {might work better.} 44. f4 Bg7) 44. Ne3 ({White has to play} 44. Ne1 $1 $18) 44... Bg7 $14 45. Ng4 {Ke2 is the strong threat.} Rc3 46. Nf6 Rf3 $2 (46... Rb3 $11 {and Black stays safe.}) 47. Kg2 (47. Ke2 $18 Rc3 48. f4 (48. Kd2 Bxf6 49. gxf6 Rf3 $14)) 47... Rf5 {[%mdl 8192]} (47... Rd3 $16) 48. f4 $1 $18 Bxf6 49. gxf6 {[%cal Bg5f6,Bf6f7][%mdl 32]} Rxf4 50. Rxa3 Rxc4 {KR-KR} 51. Ra7 {Rc7+ would kill now.} Rd4 52. Rxf7 Kd5 53. Re7 {White threatens f7 and mate.} Kxe5 54. f7 {Weighted Error Value: White=0.42/Black=0.72} 1-0

[Event "15th Paleochora Open 2022"]
[Site "Paleochora"]
[Date "2022.07.22"]
[Round "7.18"]
[White "Godzwon, Iwo"]
[Black "Georgiadis, Anastasios"]
[Result "1-0"]
[ECO "C01"]
[WhiteElo "2336"]
[BlackElo "1701"]
[Annotator "TA"]
[PlyCount "69"]
[EventDate "2022.07.17"]
[EventType "swiss"]
[EventCountry "GRE"]
[SourceTitle "playchess.com"]
[Source "ChessBase"]
[SourceQuality "1"]
[TimeControl "40/5400+30:900+30"]

{[%evp 10,69,0,0,0,-14,-6,-10,-16,-33,-12,-1,-3,-41,-17,-18,63,-12,23,30,15,17,7,0,0,0,0,-2,0,0,-14,-9,12,15,50,-40,10,0,62,52,74,53,50,52,61,54,95,85,83,94,142,136,193,187,179,172,283,254,386,341,314,301]} 1. e4 e6 2. d4 d5 3. Bd3 dxe4 4. Bxe4 Nf6 5. Bf3 c5 6. Ne2 Be7 {C01: French: Exchange Variation.} 7. Be3 {7.Nbc3 is becoming the main line.} cxd4 8. Qxd4 O-O {The position is equal.} 9. Nbc3 {[#]} Nbd7 $146 ({Predecessor:} 9... Nc6 10. Qxd8 Rxd8 11. Nb5 Nd5 12. Bxd5 exd5 13. Nc7 Rb8 14. O-O-O Be6 15. Nf4 Rdc8 16. Ncxe6 fxe6 17. Nxe6 {1-0 (57) Pacheco Lugo,A (2127)-Golubenko,V (2209) Chess.com INT 2021}) 10. O-O-O Qa5 11. Bd2 {[%cal Oc3d5]} e5 $1 12. Qh4 Qa6 (12... Nb6 $11) 13. Be4 (13. Ng3 $1 $14) 13... Re8 {[#] Threatens to win with ...Nc5.} 14. Bd3 Qe6 15. Bc4 Qc6 16. Bb5 Qc7 17. Bg5 a6 18. Bxf6 Bxf6 19. Qc4 $36 {[%mdl 2048] White fights for an advantage.} Qxc4 20. Bxc4 Nb6 21. Bb3 Be6 22. Rd6 (22. Ne4 $14) 22... Nc8 (22... Bg5+ $15 23. Kb1 Nc4 24. Bxc4 Bxc4) 23. Rdd1 ({Better is} 23. Rd3 $11) 23... Nb6 $14 24. Ne4 Bxb3 25. axb3 Be7 26. Nd6 Reb8 27. Nc3 {[%cal Be2c3,Bc3e4,Be4f6][%mdl 32]} Kf8 28. Rhe1 f6 29. Nce4 {Pair of Knights!} Nc8 (29... a5 $142) 30. Nf5 $16 {0x0.002023191032dp-1022s more active pieces. The black rooks are badly placed.} g6 (30... Nb6 $16) 31. Nxe7 $18 Kxe7 32. f4 {[%cal Bf2f4,Bf4e5][%mdl 32] And now fxe5 would win.} Na7 (32... Nb6 $142 33. fxe5 f5) 33. fxe5 f5 (33... fxe5 {was called for.} 34. Nc5 Kf7 35. Rd7+ Kg8 36. Rxe5 Nc6) 34. Nf6 Rd8 {Prevents Rd7+.} 35. Nd5+ {Weighted Error Value: White=0.16 (very precise) /Black=0.24 (precise)} ({Not} 35. Nxh7 Rxd1+ 36. Rxd1 Nc6 $16) 1-0

[Event "15th Paleochora Open 2022"]
[Site "Paleochora"]
[Date "2022.07.23"]
[Round "8.1"]
[White "Stremavicius, Titas"]
[Black "Ali Marandi, Cemil Can"]
[Result "1/2-1/2"]
[ECO "D31"]
[WhiteElo "2532"]
[BlackElo "2561"]
[Annotator "TA"]
[PlyCount "24"]
[EventDate "2022.07.17"]
[EventType "swiss"]
[EventCountry "GRE"]
[SourceTitle "playchess.com"]
[Source "ChessBase"]
[SourceQuality "1"]
[TimeControl "40/5400+30:900+30"]

{[%evp 9,24,14,26,21,20,29,19,13,20,15,27,22,20,8,13,13,4]} 1. d4 d5 2. c4 e6 3. Nc3 h6 4. cxd5 exd5 5. Bf4 c6 6. e3 {D31: Queen's Gambit Declined: Semi-Slav without ...Nf6 (+ Marshall Gambit and Noteboom) and Exchange Variation lines without ...Nf6.} Bd6 7. Bxd6 Qxd6 8. Bd3 Ne7 9. Qc2 {[#]} Qf6 $146 ({Predecessor:} 9... g6 10. Nf3 Bf5 11. Bxf5 Nxf5 12. O-O O-O 13. e4 dxe4 14. Nxe4 Qf4 15. d5 Ne7 16. dxc6 Nbxc6 {½-½ (16) Tsolakidou,S (2379)-Ali Marandi,C (2542) Charlotte 2021}) 10. Nge2 Bf5 {The position is equal.} 11. Bxf5 Qxf5 12. Qxf5 Nxf5 {An uneventful encounter.  Weighted Error Value: White=0.03 (flawless) /Black=0.04 (flawless)} 1/2-1/2

[Event "15th Paleochora Open 2022"]
[Site "Paleochora"]
[Date "2022.07.23"]
[Round "8.2"]
[White "Meshkovs, Nikita"]
[Black "Hamitevici, Vladimir"]
[Result "1/2-1/2"]
[ECO "D15"]
[WhiteElo "2535"]
[BlackElo "2473"]
[Annotator "TA"]
[PlyCount "181"]
[EventDate "2022.07.17"]
[EventType "swiss"]
[EventCountry "GRE"]
[SourceTitle "playchess.com"]
[Source "ChessBase"]
[SourceQuality "1"]
[TimeControl "40/5400+30:900+30"]

{[%evp 51,181,87,87,94,94,94,94,94,101,96,96,94,94,94,94,94,94,80,78,78,88,80,80,73,96,96,138,138,145,122,121,80,80,8,8,8,8,8,8,8,8,13,28,28,28,28,28,28,28,35,35,8,8,8,8,8,8,8,8,8,8,8,8,8,8,8,8,8,8,8,8,8,8,8,8,8,8,8,8,8,8,8,8,8,8,0,8,8,8,8,8,8,8,8,8,8,8,8,8,8,8,8,8,8,8,8,8,8,8,8,8,8,8,8,8,8,8,8,3181,8,8,0,959,0,8,0,8,8,776,8,8,8]} 1. c4 c6 2. Nf3 d5 3. d4 Nf6 4. Nc3 a6 5. c5 g6 6. Bf4 Bg7 7. e3 O-O 8. h3 Nbd7 9. Bd3 b6 10. cxb6 Qxb6 11. O-O Qxb2 12. Na4 Qa3 13. Rc1 a5 14. Rc3 Qb4 15. Qc2 e5 16. Bxe5 Ne4 17. Bxg7 Nxc3 18. Bxf8 Qxa4 19. Qxc3 Kxf8 20. e4 Kg7 21. Rb1 Rb8 22. Rxb8 Nxb8 23. exd5 Qb4 24. Qxb4 axb4 25. Bc4 Kf6 26. Kf1 cxd5 27. Bxd5 Be6 28. Bxe6 Kxe6 29. Ke2 Kd5 30. Kd3 Nc6 31. Ng5 Nxd4 32. Nxh7 b3 33. axb3 Nxb3 34. Ng5 Nc5+ 35. Ke3 f6 36. Nf3 Ne6 37. h4 Kd6 38. g4 Ke7 39. Nd4 Nc5 40. Ne2 Kf7 41. Nf4 g5 42. hxg5 (42. Ng2 $16) 42... fxg5 $11 43. Nd3 Nb3 44. Ne5+ (44. f3 $5 {[%cal Rd3f2]}) 44... Ke6 45. Nf3 Kf6 46. Nd2 Na5 47. Ne4+ Kg6 48. Kd4 Nc6+ 49. Kd5 Nb4+ 50. Ke6 Nd3 51. f3 Nf4+ 52. Kd6 Nd3 53. Ke7 Ne1 54. Nd2 Kg7 55. Ke6 Kg6 56. Ke5 Nd3+ 57. Ke4 (57. Kd4 $5 {[%cal Rd4d3]} Ne1 58. Ke3 $16) 57... Nc5+ 58. Kd4 Ne6+ 59. Ke5 Nf4 60. Nc4 Ne2 61. Ne3 Ng1 62. Ke4 Kf6 63. Nd5+ Ke6 64. Nc3 Nh3 65. Kd4 Kf6 66. Kd5 Nf4+ 67. Kd6 Nd3 68. Ne4+ Kg6 69. Kd5 Ne1 70. Nd2 Kf6 71. Ke4 Ng2 72. Nb3 Nf4 73. Nc5 Ne2 74. Kd5 Nc3+ 75. Kc4 Ne2 76. Kd3 $1 Nf4+ 77. Kd4 Ne2+ 78. Ke3 Nf4 79. Ne4+ Kg6 80. Kd4 Ne2+ 81. Ke5 Nf4 82. Nc5 Ne2 83. Nb3 Nf4 84. Nc1 Nh3 $2 {[%mdl 8192]} (84... Ng2 $11) 85. Ne2 $2 (85. Nd3 $18 {And now Ke6 would win.} Ng1 86. Ne1) 85... Nf2 $11 86. Nc1 $2 {[%mdl 8192]} (86. Nd4 $11) 86... Nh3 $1 $18 87. Nb3 $2 ({White must play} 87. Nd3 $18 {Strongly threatening Ke6.} Ng1 88. Ne1) 87... Nf4 $11 88. Nc5 Ne2 89. Nd3 Ng1 $2 {[%mdl 8192] [#]} (89... Kg7 $11) 90. Ke4 $2 (90. Ke6 $1 $18 {Black must now prevent Ne5+.} Nxf3 91. Kd5) 90... Ne2 $11 91. f4 1/2-1/2